[Event "SWVG Arnold Classic Prestige All 2019"]
[Site "Sandton"]
[Date "2019.05.18"]
[Round "2.1"]
[White "Goosen, Anton"]
[Black "Grover, Sahaj"]
[Result "0-1"]
[ECO "D00"]
[WhiteElo "1965"]
[BlackElo "2515"]
[Annotator "RC"]
[PlyCount "54"]
[EventDate "2019.05.18"]
[EventType "swiss"]
[EventCountry "RSA"]
[SourceTitle "playchess.com"]
[Source "ChessBase"]
[SourceQuality "1"]
[TimeControl "1500+10"]

1. d4 {[%emt 0:00:00]} d5 {[%emt 0:00:00]} 2. Bf4 {[%emt 0:00:00]} c5 {[%emt 0:00:00]} 3. e3 {[%emt 0:00:00]} Nc6 {[%emt 0:00:00]} 4. c3 {[%emt 0:00:00]} Qb6 {[%emt 0:00:00]} 5. Qb3 {[%emt 0:00:15]} c4 {[%emt 0:00:00]} 6. Qc2 {[%emt 0:00:22]} Bf5 {[%emt 0:00:05]} 7. Qxf5 {[%emt 0:00:30]} Qxb2 {[%emt 0:00:02]} 8. Qxd5 {[%emt 0:00:02]} Qxa1 {[%emt 0:26:13]} 9. Qb5 O-O-O {[%emt 0:00:00]} 10. Bxc4 {[%emt 0:00:18]} e5 {[%emt 0:00:00]} 11. Bxe5 {[%emt 0:02:52]} Bb4 {[%emt 0:00:00]} 12. Bd3 {[%emt 0:02:32]} Bxc3+ {[%emt 0:00:00]} 13. Kd1 {[%emt 0:20:19]} Nge7 {[%emt 0:00:50]} 14. Ne2 {[%emt 0:00:10]} Bb4 {[%emt 0:00:10]} 15. a3 {[%emt 0:00:10]} Bxa3 {[%emt 0:00:10]} 16. Nec3 {[%emt 0:00:10]} Bb4 {[%emt 0:00:00]} 17. Bxg7 {[%emt 0:00:00]} Bxc3 {[%emt 0:00:00]} 18. Bxh8 {[%emt 0:00:00]} Rxh8 {[%emt 0:00:00]} 19. d5 {[%emt 0:00:00]} a6 {[%emt 0:00:00]} 20. Qc4 {[%emt 0:00:00]} Nxd5 {[%emt 0:00:00]} 21. Qxd5 {[%emt 0:00:00]} Rd8 {[%emt 0:00:00]} 22. Qf5+ {[%emt 0:00:00]} Kb8 {[%emt 0:00:00]} 23. Ke2 {[%emt 0:00:00]} Qb2+ {[%emt 0:00:00]} 24. Kf3 {[%emt 0:00:00]} Ne5+ {[%emt 0:00:00]} 25. Kg3 {[%emt 0:00:00]} Nxd3 {[%emt 0:00:00]} 26. Rd1 {[%emt 0:00:00]} Rg8+ {[%emt 0:00:00]} 27. Kh4 {[%emt 0:00:00]} Bf6+ {[%emt 0:00:00]} 0-1

[Event "SWVG Arnold Classic Prestige All 2019"]
[Site "Sandton"]
[Date "2019.05.18"]
[Round "2.2"]
[White "Mpya, Tshediso M"]
[Black "Makoto, Rodwell"]
[Result "0-1"]
[ECO "D02"]
[WhiteElo "1958"]
[BlackElo "2369"]
[Annotator "NA"]
[PlyCount "96"]
[EventDate "2019.05.18"]
[EventType "swiss"]
[EventCountry "RSA"]
[SourceTitle "playchess.com"]
[Source "ChessBase"]
[SourceQuality "1"]
[TimeControl "1500+10"]

1. d4 {[%emt 0:00:00]} Nf6 {[%emt 0:00:00]} 2. Bf4 {[%emt 0:00:00]} c5 {[%emt 0:00:00]} 3. e3 {[%emt 0:00:00]} d5 {[%emt 0:00:00]} 4. c3 {[%emt 0:00:00]} Qb6 {[%emt 0:00:00]} 5. Qc1 {[%emt 0:00:35]} Nc6 {[%emt 0:00:00]} 6. Nf3 {[%emt 0:00:04]} Bf5 {[%emt 0:00:00]} 7. Nbd2 {[%emt 0:00:03]} Rc8 {[%emt 0:00:01]} 8. Nb3 {[%emt 0:01:10] D02: 1 d4 d5 2 Nf3 sidelines, including 2...Nf6 3 g3 and 2...Nf6 3 Bf4} (8. dxc5 Qxc5 9. Qd1 Qb6 10. Qb3 Nd7 11. Nh4 Be6 12. Nhf3 f6 13. Nd4 Bf7 14. Qxb6 Nxb6 15. Nxc6 bxc6 {½-½ (23) Burghoff,A (2529)-Frey Beckman,K (2700) ICCF email 2004}) 8... e6 {[%emt 0:00:21]} 9. dxc5 $146 {[%emt 0:00:24]} ({Predecessor:} 9. h3 h6 10. Be2 Be7 11. O-O O-O 12. Re1 Rfe8 13. Bd1 cxd4 14. exd4 Nb4 15. Ne5 Bd6 {½-½ (31) Paulweber,L (1410)-Berelowitsch,D (1455) Magdeburg 2015}) 9... Bxc5 {[%emt 0:00:00]} 10. Nxc5 {[%emt 0:00:02]} Qxc5 {[%emt 0:00:01]} 11. Be2 {[%emt 0:00:24]} O-O {[%emt 0:00:15]} 12. O-O {[%emt 0:00:03]} h6 {[%emt 0:00:01]} 13. h3 {[%emt 0:00:02]} Rfd8 {[%emt 0:00:13]} 14. Qd1 {[%emt 0:00:02]} Ne4 {[%emt 0:00:46]} 15. Nd4 {[%emt 0:00:40]} Bg6 {[%emt 0:00:15]} 16. Bd3 {[%emt 0:01:03]} Ne7 {[%emt 0:01:31]} 17. Qe2 {[%emt 0:02:06]} Nf6 {[%emt 0:00:34]} 18. Rad1 {[%emt 0:00:13]} Qb6 {[%emt 0:00:14]} 19. Nf3 {[%emt 0:00:30]} Bxd3 {[%emt 0:01:06]} 20. Rxd3 {[%emt 0:00:10]} Ng6 {[%emt 0:00:06]} 21. Bh2 {[%emt 0:00:04]} Ne4 {[%emt 0:00:07]} 22. Ne5 {[%emt 0:00:36]} Ne7 {[%emt 0:00:50]} 23. f3 {[%emt 0:01:57]} Nf6 {[%emt 0:00:19]} 24. Kh1 {[%emt 0:00:10]} Qa6 {[%emt 0:00:03]} 25. a3 {[%emt 0:00:12]} Re8 {[%emt 0:00:46]} 26. e4 {[%emt 0:00:45]} Nc6 {[%emt 0:00:12]} 27. Nxc6 {[%emt 0:00:07]} Rxc6 {[%emt 0:00:22]} 28. e5 {[%emt 0:00:02]} Nd7 {[%emt 0:00:04]} 29. Qe3 {[%emt 0:00:34]} Qb6 {[%emt 0:00:30]} 30. Qd2 {[%emt 0:00:21]} Nc5 {[%emt 0:00:05]} 31. Bg1 {[%emt 0:00:29]} Qb3 {[%emt 0:00:25]} 32. Rd4 {[%emt 0:00:25]} Qb5 {[%emt 0:00:29]} 33. Rg4 {[%emt 0:01:14]} Kf8 {[%emt 0:00:01]} ({Reject} 33... Qxf1 $6 34. Qxh6 Kf8 35. Rxg7 $16) 34. Rd1 {[%emt 0:00:34]} Nb3 $2 {[%emt 0:00:34]} (34... Nd7 $1 $11 {and Black has nothing to worry.}) 35. Qc2 {[%emt 0:00:15]} Rc4 {[%emt 0:00:19]} 36. Bd4 {[%emt 0:01:19]} (36. Rxc4 $14 Qxc4 37. Bxa7) 36... g6 {[%emt 0:03:24]} (36... h5 $11 {keeps the balance.} 37. Rh4 Nxd4 38. Rdxd4 Rxd4 39. Rxd4 Qf1+ 40. Kh2 Qe1) 37. Qf2 {[%emt 0:02:38]} (37. Be3 $16) 37... h5 {[%emt 0:00:41]} 38. Rf4 {[%emt 0:00:36]} Nxd4 {[%emt 0:00:37]} 39. Rdxd4 {[%emt 0:01:08]} Rxd4 {[%emt 0:00:02]} 40. cxd4 {[%emt 0:00:24]} (40. Rxd4 $11 Qb6 41. g4) 40... Re7 {[%emt 0:06:58]} 41. Rf6 {[%emt 0:02:21]} Ke8 {[%emt 0:00:45]} ({Black should play} 41... Kg7 $17) 42. g4 $2 {[%emt 0:00:24]} (42. Qd2 $11) 42... Qd3 {[%emt 0:00:52]} 43. gxh5 {[%emt 0:00:30]} Rc7 {[%emt 0:01:49]} 44. Qe1 {[%emt 0:01:16]} gxh5 {[%emt 0:00:39]} 45. Qg1 {[%emt 0:00:29]} Qh7 {[%emt 0:00:18]} 46. Qg5 $2 {[%emt 0:00:25]} (46. Qd1) 46... Qb1+ {[%emt 0:00:41]} 47. Kh2 {[%emt 0:00:14]} Rc2+ {[%emt 0:00:01]} 48. Kg3 {[%emt 0:00:06]} Qe1+ {[%emt 0:00:02]} 0-1

[Event "SWVG Arnold Classic Prestige All 2019"]
[Site "Sandton"]
[Date "2019.05.18"]
[Round "2.3"]
[White "Mabusela, Johannes Manyedi"]
[Black "Erlank, Warrick"]
[Result "1-0"]
[ECO "D36"]
[WhiteElo "2220"]
[BlackElo "2006"]
[Annotator "NA RC"]
[PlyCount "63"]
[EventDate "2019.05.18"]
[EventType "swiss"]
[EventCountry "RSA"]
[SourceTitle "playchess.com"]
[Source "ChessBase"]
[SourceQuality "1"]
[TimeControl "1500+10"]

1. d4 {[%emt 0:00:00]} d5 {[%emt 0:00:00]} 2. c4 {[%emt 0:00:00]} c6 {[%emt 0:00:00]} 3. Nf3 {[%emt 0:00:01]} Nf6 {[%emt 0:00:00]} 4. Nc3 {[%emt 0:00:01]} e6 {[%emt 0:00:03]} 5. cxd5 {[%emt 0:00:02]} exd5 {[%emt 0:00:24]} 6. Qc2 {[%emt 0:00:01]} Bd6 {[%emt 0:00:12]} 7. Bg5 {[%emt 0:00:03]} Nbd7 {[%emt 0:00:09]} 8. e3 {[%emt 0:00:02]} O-O {[%emt 0:00:21]} 9. Bd3 {[%emt 0:00:02]} h6 {[%emt 0:01:20]} 10. Bh4 {[%emt 0:00:04]} Re8 {[%emt 0:00:04]} 11. g4 {[%emt 0:01:33] D36: Queen's Gambit Declined: Exchange Variation: Main line (5 Bg5 c6 6 Qc2)} (11. O-O g5 12. Bg3 Bxg3 13. hxg3 Qe7 14. Nd2 Nb6 15. a3 Bg4 16. b4 Be6 17. Nb3 Nc4 18. Nc5 b6 19. Nxe6 Qxe6 {½-½ (41) Persson,C (2563)-Vesely,P (2581) ICCF email 2014}) 11... Qa5 {[%emt 0:02:11]} 12. g5 {[%emt 0:00:34]} hxg5 {[%emt 0:00:04]} 13. Nxg5 {[%emt 0:00:12]} c5 {[%emt 0:01:38]} 14. O-O-O {[%emt 0:04:46]} cxd4 $146 {[%emt 0:02:07]} ({Predecessor:} 14... Nf8 15. Nxd5 Qxa2 16. Nxf6+ gxf6 17. Ne4 Qa1+ 18. Qb1 Qxb1+ 19. Kxb1 Rxe4 20. Bxe4 f5 21. dxc5 Bxc5 22. Bc2 Be6 23. Bf6 {1-0 (23) Radovanovic,J (2360)-Hoffmann,R (2106) Berlin 2013}) 15. exd4 {[%emt 0:00:01]} Bf4+ {[%emt 0:00:31]} 16. Kb1 {[%emt 0:00:03]} Bxg5 {[%emt 0:00:14]} 17. Bxg5 {[%emt 0:00:05]} Ne4 {[%emt 0:00:20]} 18. Rde1 {[%emt 0:02:59]} (18. Bxe4 $16 dxe4 19. Rhg1 (19. Nxe4 Rxe4 {[%mdl 64] Remove Defender} 20. Qxe4 Qxg5 $17)) 18... Ndf6 {[%emt 0:05:20]} 19. Nxe4 {[%emt 0:03:11]} ({White should try} 19. Bxf6 $16 Nxf6 20. Qc1) 19... Nxe4 {[%emt 0:01:35]} 20. f3 {[%emt 0:00:35]} Be6 {[%emt 0:01:05]} 21. Qg2 $2 {[%emt 0:02:53]} ({Inferior is} 21. fxe4 dxe4 {[%mdl 64] Discovered Attack} 22. Bc4 Bxc4 $17) (21. h4 $16) 21... Rac8 $2 {[%emt 0:01:20]} (21... Bh3 $1 $11 {and Black has nothing to worry.} 22. Qxh3 Nxg5 23. Rxe8+ Rxe8) 22. Bh6 {[%emt 0:00:56]} g6 {[%emt 0:00:42] [#]} 23. h4 $2 {[%emt 0:02:09]} (23. Ka1 $1 $18) 23... Bf5 {[%emt 0:06:28]} 24. fxe4 {[%emt 0:02:38]} dxe4 {[%emt 0:00:01]} 25. Rxe4 {[%emt 0:00:48]} Bxe4 {[%emt 0:00:28]} 26. Bxe4 {[%emt 0:00:01]} Qh5 {[%emt 0:00:51]} 27. Bg5 {[%emt 0:00:17]} Rc4 {[%emt 0:00:17]} 28. Bf3 {[%emt 0:00:31]} Qh8 {[%emt 0:00:01]} 29. h5 {[%emt 0:00:01]} Qxd4 {[%emt 0:00:20]} 30. hxg6 {[%emt 0:00:11]} Qd3+ {[%emt 0:00:25]} 31. Ka1 {[%emt 0:00:12]} Qxg6 {[%emt 0:00:46]} 32. Bf6 $18 {[%emt 0:00:27]} 1-0

[Event "SWVG Arnold Classic Prestige All 2019"]
[Site "Sandton"]
[Date "2019.05.18"]
[Round "2.4"]
[White "Oatlhotse, Providence"]
[Black "Masiya, Mfundo"]
[Result "1-0"]
[ECO "D99"]
[WhiteElo "2289"]
[BlackElo "1856"]
[Annotator "NA RC"]
[PlyCount "109"]
[EventDate "2019.05.18"]
[EventType "swiss"]
[EventCountry "RSA"]
[SourceTitle "playchess.com"]
[Source "ChessBase"]
[SourceQuality "1"]
[TimeControl "1500+10"]

{[%evp 29,107,4,19,19,14,32767,0,0,18,-13,0,-37,-37,-26,32767,-52,-67,-36,0,32767,32767,32767,32767,0,40,41,233,227,231,240,241,235,291,259,281,299,32767,32767,340,32767,374,32767,382,32767,387,32767,470,32767,5531,11697,29967,32767,32767,29968,32767,32767,32767,32767,32767,32767,32767,29974,29956,32767,29969,32767,29970,32767,29971,32767,32767,29977,32767,29980,29980,29977,29976,32767,32767,29981]} 1. c4 {[%emt 0:00:00]} Nf6 {[%emt 0:00:00]} 2. Nc3 {[%emt 0:00:10]} d5 {[%emt 0:00:10]} 3. cxd5 {[%emt 0:00:10]} Nxd5 {[%emt 0:00:10]} 4. Nf3 {[%emt 0:00:10]} g6 {[%emt 0:00:10]} 5. Qb3 {[%emt 0:00:10]} Nb6 {[%emt 0:00:13]} 6. d4 {[%emt 0:00:05]} Bg7 {[%emt 0:00:03]} 7. e4 {[%emt 0:00:02]} O-O {[%emt 0:00:18]} 8. Be3 {[%emt 0:00:07]} Nc6 {[%emt 0:00:08]} 9. Rd1 {[%emt 0:00:43]} Bg4 {[%emt 0:00:17]} 10. d5 {[%emt 0:00:02]} Ne5 {[%emt 0:00:37]} 11. Be2 {[%emt 0:00:04]} Nxf3+ {[%emt 0:00:30]} 12. gxf3 {[%emt 0:00:02]} Bh5 {[%emt 0:00:40]} 13. a4 {[%emt 0:00:30] D99: Grünfeld: Russian System: 7 e4 Bg4 8 Be3 Nfd7 9 Qb3} (13. O-O Qc8 14. Nb5 Qh3 15. Bd4 Bh6 16. Be5 c6 17. dxc6 bxc6 18. Nd4 Rac8 19. Rfe1 c5 20. Bf1 Qh4 {1-0 (45) Vidit,S (2643)-Artemiev,V (2660) Martuni 2015}) 13... Qc8 {[%emt 0:01:26]} 14. h4 {[%emt 0:02:16]} Nd7 {[%emt 0:01:04]} 15. f4 {[%emt 0:01:50]} Bxe2 {[%emt 0:00:47]} 16. Nxe2 {[%emt 0:00:42]} Nf6 $146 {[%emt 0:00:43]} ({Predecessor:} 16... c6 17. h5 cxd5 18. hxg6 hxg6 19. Rxd5 e6 20. Rd2 Qc6 {½-½ (46) Goerg,J-Lueers,H Germany 1990}) 17. Ng3 {[%emt 0:00:24]} c6 {[%emt 0:01:18]} 18. h5 {[%emt 0:00:30]} cxd5 {[%emt 0:01:58]} 19. hxg6 {[%emt 0:01:36]} hxg6 {[%emt 0:00:01]} 20. f5 {[%emt 0:01:23]} Qc4 {[%emt 0:01:04]} 21. Qxc4 {[%emt 0:02:10]} dxc4 {[%emt 0:00:01]} 22. f3 {[%emt 0:00:05]} Rfd8 {[%emt 0:01:05]} 23. Ke2 {[%emt 0:00:48]} Rxd1 {[%emt 0:04:05]} 24. Rxd1 {[%emt 0:00:05]} Nh5 {[%emt 0:00:03]} 25. Nxh5 {[%emt 0:02:25]} gxh5 {[%emt 0:00:01]} 26. Rg1 {[%emt 0:00:16]} Kf8 {[%emt 0:00:29]} 27. e5 $1 {[%emt 0:00:10]} Rd8 $2 {[%emt 0:02:02]} (27... Rc8 $14) 28. f6 $1 {[%emt 0:01:20]} exf6 {[%emt 0:02:59]} 29. Bc5+ {[%emt 0:00:22]} Ke8 {[%emt 0:00:13]} 30. Rxg7 {[%emt 0:00:22]} Rd5 {[%emt 0:00:07]} 31. Bb4 {[%emt 0:01:39]} Rxe5+ {[%emt 0:00:41]} 32. Kf2 {[%emt 0:00:22]} Rg5 {[%emt 0:01:24]} 33. Rh7 {[%emt 0:00:23]} a5 {[%emt 0:00:17]} 34. Bc3 {[%emt 0:00:23]} b5 {[%emt 0:00:10]} 35. axb5 {[%emt 0:00:36]} Rxb5 {[%emt 0:00:02]} 36. Rh8+ {[%emt 0:00:14]} Kd7 {[%emt 0:00:50]} 37. Ra8 {[%emt 0:00:03]} h4 {[%emt 0:02:02]} 38. Rxa5 {[%emt 0:00:49]} Rxa5 {[%emt 0:00:43]} (38... Rg5 $142 39. Ra7+ Ke8 40. Ra8+ Kd7) 39. Bxa5 {[%emt 0:00:03]} Ke6 {[%emt 0:00:02]} 40. Kg2 {[%emt 0:00:30]} Ke5 {[%emt 0:00:02]} 41. Bc3+ {[%emt 0:00:26]} Kf5 {[%emt 0:00:10]} 42. Be1 {[%emt 0:01:47]} h3+ {[%emt 0:00:14]} 43. Kxh3 {[%emt 0:00:09]} Kf4 {[%emt 0:00:01]} 44. Kg2 {[%emt 0:00:04]} Ke3 {[%emt 0:00:02]} 45. Kg3 {[%emt 0:00:31]} f5 {[%emt 0:00:02]} 46. f4 {[%emt 0:00:15]} Ke4 {[%emt 0:00:27]} 47. Bc3 {[%emt 0:00:15]} Ke3 {[%emt 0:00:02]} 48. Bf6 {[%emt 0:00:37]} Ke4 {[%emt 0:00:10]} 49. Be5 {[%emt 0:00:13]} Ke3 {[%emt 0:00:04]} 50. Kh4 {[%emt 0:01:38]} f6 {[%emt 0:00:01]} 51. Bd6 {[%emt 0:00:05]} Kd3 {[%emt 0:00:32]} 52. Bb4 {[%emt 0:00:18]} Ke3 {[%emt 0:00:20]} 53. Kg3 {[%emt 0:00:05]} Ke4 {[%emt 0:00:28]} 54. Bc3 {[%emt 0:00:08]} Kd5 {[%emt 0:00:09]} 55. Bxf6 {[%emt 0:00:04]} 1-0

[Event "SWVG Arnold Classic Prestige All 2019"]
[Site "Sandton"]
[Date "2019.05.18"]
[Round "2.5"]
[White "Meiboom, Cornelis"]
[Black "Mnguni, Jacob Dumisani"]
[Result "0-1"]
[ECO "B23"]
[WhiteElo "1788"]
[BlackElo "2141"]
[Annotator "RC"]
[PlyCount "94"]
[EventDate "2019.05.18"]
[EventType "swiss"]
[EventCountry "RSA"]
[SourceTitle "playchess.com"]
[Source "ChessBase"]
[SourceQuality "1"]
[TimeControl "1500+10"]

1. e4 {[%emt 0:00:00]} c5 {[%emt 0:00:00]} 2. f4 {[%emt 0:00:00]} Nc6 {[%emt 0:00:05]} 3. Nf3 {[%emt 0:00:00]} g6 {[%emt 0:00:02]} 4. Nc3 {[%emt 0:00:00]} Bg7 {[%emt 0:00:01]} 5. Bb5 {[%emt 0:00:02]} Nd4 {[%emt 0:00:02]} 6. O-O {[%emt 0:00:14]} a6 {[%emt 0:00:02]} 7. Bd3 {[%emt 0:00:03]} d6 {[%emt 0:00:26]} 8. Nxd4 {[%emt 0:00:03]} cxd4 {[%emt 0:00:10]} 9. Ne2 {[%emt 0:00:02]} Nf6 {[%emt 0:00:33]} 10. c3 {[%emt 0:00:03]} dxc3 {[%emt 0:00:03]} 11. dxc3 {[%emt 0:00:02]} O-O {[%emt 0:00:06]} 12. Ng3 {[%emt 0:00:53]} b5 {[%emt 0:00:47]} 13. Qe2 {[%emt 0:00:19]} Qc7 {[%emt 0:00:12]} 14. Kh1 {[%emt 0:00:27]} Bg4 {[%emt 0:00:08]} 15. Qf2 {[%emt 0:00:17]} Be6 {[%emt 0:00:06]} 16. Re1 {[%emt 0:01:01]} Rfb8 {[%emt 0:00:16]} 17. a3 {[%emt 0:00:05]} a5 {[%emt 0:00:05]} 18. Bd2 {[%emt 0:00:11]} Nd7 {[%emt 0:00:19]} 19. Qe2 {[%emt 0:00:31]} Bc4 {[%emt 0:00:04]} 20. Rac1 {[%emt 0:02:22]} e6 {[%emt 0:01:48]} 21. Rc2 {[%emt 0:00:38]} d5 {[%emt 0:00:26]} 22. exd5 {[%emt 0:01:38]} exd5 {[%emt 0:00:06]} 23. Qf3 {[%emt 0:00:59]} Nc5 {[%emt 0:03:00]} 24. Bxc4 {[%emt 0:00:33]} dxc4 {[%emt 0:00:04]} 25. f5 {[%emt 0:00:09]} Nd3 {[%emt 0:00:04]} 26. Rf1 {[%emt 0:00:53]} Re8 {[%emt 0:02:33]} 27. fxg6 {[%emt 0:01:09]} hxg6 {[%emt 0:00:09]} 28. Ne4 {[%emt 0:00:08]} Ra6 {[%emt 0:00:30]} 29. Bg5 {[%emt 0:00:45]} f5 {[%emt 0:00:10]} 30. Nf2 {[%emt 0:00:53]} Rd6 {[%emt 0:03:35]} 31. Re2 {[%emt 0:02:19]} Qf7 {[%emt 0:04:30]} 32. h4 {[%emt 0:03:49]} b4 {[%emt 0:01:41]} 33. axb4 {[%emt 0:02:12]} Rxe2 {[%emt 0:00:16]} 34. Qxe2 {[%emt 0:08:00]} axb4 {[%emt 0:08:21]} 35. Nd1 {[%emt 0:00:00]} Qe6 {[%emt 0:00:00]} 36. Qd2 {[%emt 0:00:00]} b3 {[%emt 0:00:00]} 37. Ne3 {[%emt 0:00:00]} Bf6 {[%emt 0:00:00]} 38. Ra1 {[%emt 0:00:00]} Bxg5 {[%emt 0:00:00]} 39. hxg5 {[%emt 0:00:00]} f4 {[%emt 0:00:00]} 40. Ra8+ {[%emt 0:00:00]} Kf7 {[%emt 0:00:00]} 41. Ra7+ {[%emt 0:00:00]} Ke8 {[%emt 0:00:00]} 42. Ra8+ {[%emt 0:00:00]} Kd7 {[%emt 0:00:00]} 43. Ra7+ {[%emt 0:00:05]} Kc8 {[%emt 0:00:00]} 44. Nf1 {[%emt 0:00:09]} Rd7 {[%emt 0:00:00]} 45. Ra4 {[%emt 0:00:13]} Qc6 {[%emt 0:00:00]} 46. Ra5 {[%emt 0:00:09]} Qb6 {[%emt 0:00:00]} 47. Ra4 {[%emt 0:00:10]} Nf2+ {[%emt 0:00:00] Ra1 [%clk 0:00:00]} 0-1

[Event "SWVG Arnold Classic Prestige All 2019"]
[Site "Sandton"]
[Date "2019.05.18"]
[Round "2.6"]
[White "Simutowe, Musatwe"]
[Black "Klevansky, Aron"]
[Result "1-0"]
[ECO "A48"]
[WhiteElo "2170"]
[BlackElo "1878"]
[Annotator "NA RC"]
[PlyCount "97"]
[EventDate "2019.05.18"]
[EventType "swiss"]
[EventCountry "RSA"]
[SourceTitle "playchess.com"]
[Source "ChessBase"]
[SourceQuality "1"]
[TimeControl "1500+10"]

1. d4 {[%emt 0:00:00]} Nf6 {[%emt 0:00:00]} 2. Nf3 {[%emt 0:00:00]} g6 {[%emt 0:00:00]} 3. Bf4 {[%emt 0:00:00]} Bg7 {[%emt 0:00:05]} 4. e3 {[%emt 0:00:02]} d6 {[%emt 0:00:34]} 5. h3 {[%emt 0:00:03]} O-O {[%emt 0:00:18]} 6. Be2 {[%emt 0:00:03]} c5 {[%emt 0:00:21]} 7. c3 {[%emt 0:00:02]} b6 {[%emt 0:00:45]} 8. O-O {[%emt 0:00:05]} Bb7 {[%emt 0:00:05]} 9. Nbd2 {[%emt 0:00:03]} Nc6 {[%emt 0:00:37]} 10. a4 {[%emt 0:00:38]} Nd7 {[%emt 0:00:54] A48: 1 d4 Nf6 2 Nf3 g6: Torre, London and Colle Systems} (10... Rc8 11. Bh2 Re8 12. Bd3 a6 13. Qe2 cxd4 14. exd4 e5 15. dxe5 dxe5 16. Ne4 Nxe4 17. Bxe4 f5 18. Rfd1 {1-0 (27) Karjakin,S (2783)-Nepomniachtchi,I (2751) chess.com INT 2017}) 11. Bh2 {[%emt 0:00:06]} cxd4 $146 {[%emt 0:01:26]} ({Predecessor:} 11... Nf6 12. Re1 Rc8 13. Bf1 Qd7 14. Nc4 d5 15. Nce5 {½-½ (15) Dawidow,J (2339)-Kopacz,G (2251) Ustron 2001}) 12. exd4 {[%emt 0:00:36]} e5 {[%emt 0:00:32]} 13. Nc4 {[%emt 0:02:01]} e4 $2 {[%emt 0:02:58]} (13... Qe7 $14) 14. Nfd2 {[%emt 0:02:24]} d5 {[%emt 0:00:36]} 15. Nd6 {[%emt 0:00:02]} Bc8 {[%emt 0:00:54]} 16. f3 {[%emt 0:02:43]} exf3 {[%emt 0:02:58]} 17. Nxf3 {[%emt 0:00:34]} Nf6 {[%emt 0:00:01]} 18. Bd3 {[%emt 0:01:01]} (18. Bb5 $142 Ne7 19. Qe2) 18... Ne8 {[%emt 0:01:38]} 19. Nxc8 {[%emt 0:00:27]} Rxc8 {[%emt 0:00:07]} 20. Ba6 {[%emt 0:00:06]} Nf6 {[%emt 0:01:35]} 21. Bxc8 {[%emt 0:00:03]} Qxc8 {[%emt 0:00:01]} 22. Ne5 {[%emt 0:00:12]} Ne7 {[%emt 0:00:35]} (22... Na5 $16 23. Qe2 Ne4) 23. Qd3 {[%emt 0:00:26]} Nf5 {[%emt 0:01:01]} 24. a5 {[%emt 0:00:06]} Ne4 {[%emt 0:01:22]} 25. axb6 {[%emt 0:01:56]} axb6 {[%emt 0:00:04]} 26. Ra7 {[%emt 0:00:09]} Bh6 {[%emt 0:03:20]} 27. Ng4 {[%emt 0:01:53]} Bg5 {[%emt 0:00:21]} 28. Re1 {[%emt 0:00:52]} h5 {[%emt 0:01:26]} 29. Ne5 {[%emt 0:00:22]} Bh4 {[%emt 0:00:34]} 30. Rxe4 {[%emt 0:01:03]} dxe4 {[%emt 0:00:14]} 31. Qxe4 {[%emt 0:00:03]} Re8 {[%emt 0:01:45]} 32. Bf4 {[%emt 0:01:12]} f6 {[%emt 0:02:09]} 33. Qd5+ {[%emt 0:01:37]} Qe6 {[%emt 0:00:02]} 34. Qxe6+ {[%emt 0:00:08]} Rxe6 {[%emt 0:00:01]} 35. Nf3 {[%emt 0:00:04]} Re2 {[%emt 0:00:44]} (35... Re4 {is a better defense.}) 36. Ra2 {[%emt 0:05:37]} g5 {[%emt 0:00:13]} 37. Bc7 {[%emt 0:00:14]} Bf2+ {[%emt 0:00:34]} 38. Kh2 {[%emt 0:00:13]} h4 {[%emt 0:00:02]} 39. Ra1 {[%emt 0:00:10]} Rxb2 {[%emt 0:00:02]} 40. d5 {[%emt 0:04:24]} Bg3+ {[%emt 0:00:27]} 41. Bxg3 {[%emt 0:00:00]} hxg3+ {[%emt 0:00:01]} 42. Kh1 {[%emt 0:00:00]} Ne3 {[%emt 0:00:10]} 43. d6 {[%emt 0:00:00]} Kf7 {[%emt 0:00:20]} 44. Re1 {[%emt 0:00:00]} Nxg2 {[%emt 0:00:13]} 45. Re7+ {[%emt 0:00:00]} Kf8 {[%emt 0:00:01] [#]} 46. Re4 $1 {[%emt 0:00:00]} Nf4 {[%emt 0:00:21]} 47. d7 {[%emt 0:00:00]} Rb1+ {[%emt 0:00:09]} 48. Ng1 {[%emt 0:00:00]} Ne2 {[%emt 0:00:13]} 49. d8=Q+ {[%emt 0:00:00] Double Attack} 1-0